bitfinex/quotes_SOLUSD_20251216
["timestamp","ask_amount","ask_price","bid_price","bid_amount"]
[1765875193455,4.50752234,126.48,126.47,7.9067132]
[1765875193952,5.18752234,126.48,126.47,7.9067132]
[1765875200239,5.18752234,126.48,126.46,16.56739359]
[1765875200772,5.18752234,126.48,126.46,17.22739359]
[1765875205669,25.12976098,126.5,126.47,0.66]
[1765875205866,4.50752234,126.49,126.47,0.66]
[1765875206166,5.18752234,126.5,126.47,0.66]
[1765875207178,5.18752234,126.5,126.48,7.90638836]
[1765875207969,13.09156148,126.52,126.48,16.56638836]
[1765875208143,5.18752234,126.51,126.49,0.66]
[1765875208479,0.68,126.51,126.49,0.66]
[1765875208779,5.18752234,126.51,126.49,0.66]
[1765875209376,0.68,126.51,126.49,8.56551505]
[1765875209590,33.48730415,126.54,126.5,0.66]
[1765875209884,0.68,126.53,126.5,9.32]
[1765875210047,4.50752234,126.54,126.5,9.32]
[1765875210249,4.50752234,126.54,126.51,0.66]
[1765875210459,5.18752234,126.54,126.52,8.66]
[1765875210984,5.18752234,126.54,126.52,17.22348084]
[1765875211358,0.68,126.53,126.52,16.56348084]
[1765875217014,4.50752234,126.54,126.52,16.56348084]
[1765875217171,5.16752234,126.54,126.52,16.56348084]
[1765875218095,4.50752234,126.54,126.52,16.56348084]
[1765875218300,0.66,126.53,126.52,16.56348084]
[1765875218502,5.16752234,126.54,126.52,16.56348084]
[1765875220997,4.50752234,126.54,126.52,16.56348084]
[1765875221170,0.66,126.53,126.52,16.56348084]
[1765875221370,5.16752234,126.53,126.52,16.56348084]
[1765875223207,5.16752234,126.53,126.52,8.66]
[1765875223417,13.0470912,126.5,126.45,7.90791272]
[1765875223710,13.0470912,126.5,126.44,0.2]
[1765875223711,4.50752234,126.46,126.44,0.2]
[1765875224004,4.50752234,126.45,126.44,8.10883112]
[1765875224172,4.50752234,126.45,126.44,0.2]
[1765875224497,5.16752234,126.45,126.44,0.2]
[1765875226097,13.07578647,126.45,126.44,0.2]
[1765875226672,26.12287767,126.45,126.44,0.2]
[1765875227490,24.50313916,126.45,126.44,0.2]
[1765875229378,27.67333927,126.45,126.44,0.2]
[1765875229701,24.50313916,126.45,126.44,0.2]
[1765875231807,21.61535533,126.45,126.44,0.2]
[1765875232021,24.5037885,126.45,126.44,0.2]
[1765875233807,27.67398861,126.45,126.44,0.2]
[1765875234616,24.5037885,126.45,126.44,0.2]
[1765875235395,27.67398861,126.45,126.44,0.2]
[1765875236220,24.5037885,126.45,126.44,0.2]
[1765875236400,27.67398861,126.45,126.44,0.2]
[1765875238420,24.5037885,126.45,126.44,0.2]
[1765875238626,27.67398861,126.45,126.44,0.2]
[1765875240321,47.44464895,126.45,126.42,0.2]
[1765875240524,2.88843317,126.43,126.42,0.2]
[1765875240923,11.45794831,126.43,126.42,0.2]
[1765875243037,10.79794831,126.43,126.42,0.2]
[1765875243323,11.45794831,126.43,126.42,0.2]
[1765875243495,8.68,126.44,126.42,0.2]
[1765875243695,2.88843317,126.43,126.42,0.86]
[1765875243918,2.88843317,126.43,126.42,0.2]
[1765875245426,3.54843317,126.43,126.42,0.2]
[1765875245724,2.88843317,126.43,126.42,0.2]
[1765875246303,11.45794831,126.43,126.42,0.2]
[1765875246620,14.34638148,126.43,126.42,0.2]
[1765875246827,17.51708418,126.43,126.42,0.2]
[1765875247200,37.29087204,126.43,126.41,0.2]
[1765875247419,15.11686634,126.42,126.41,0.2]
[1765875249335,23.02700714,126.42,126.41,0.2]
[1765875252425,15.93552437,126.39,126.38,0.2]
[1765875253023,13.0470912,126.39,126.38,0.2]
[1765875253240,15.93552437,126.39,126.38,0.2]
[1765875254858,15.93552437,126.39,126.38,0.86]
[1765875256645,2.88843317,126.39,126.38,8.7726444]
[1765875259652,2.88843317,126.39,126.38,0.86]
[1765875260652,2.88843317,126.39,126.38,8.7726444]
[1765875260859,7.91086897,126.41,126.38,8.7726444]
[1765875261156,44.39087637,126.42,126.39,0.66]
[1765875261157,2.88843317,126.42,126.39,0.66]
[1765875261838,2.88843317,126.42,126.4,7.9113924]
[1765875262353,2.88843317,126.42,126.41,0.66]
[1765875263061,8.56908969,126.44,126.41,0.66]
[1765875263254,2.88843317,126.42,126.41,0.66]
[1765875263760,2.88843317,126.42,126.41,8.57076655]
[1765875265859,8.56908969,126.44,126.41,8.57076655]
[1765875266036,2.88843317,126.42,126.41,8.57076655]
[1765875266656,2.88843317,126.42,126.41,0.66]
[1765875268159,3.54843317,126.42,126.4,16.59105905]
[1765875268359,2.88843317,126.42,126.4,17.25105905]
[1765875268559,2.88843317,126.41,126.4,17.25105905]
[1765875272169,2.88843317,126.41,126.38,0.2]
[1765875272350,13.0470912,126.38,126.37,0.2]
[1765875272550,13.0470912,126.38,126.35,0.2]
[1765875272551,13.0470912,126.37,126.35,0.2]
[1765875272866,5.77686634,126.36,126.34,0.2]
[1765875273189,2.88843317,126.35,126.34,0.2]
[1765875273368,3.60843317,126.35,126.34,0.2]
[1765875274188,20.96224079,126.34,126.33,0.2]
[1765875274347,24.57067396,126.34,126.33,0.2]
[1765875275347,33.25067396,126.34,126.33,0.2]
[1765875277052,53.03854795,126.34,126.32,0.2]
[1765875277252,5.77686634,126.32,126.31,0.2]
[1765875277661,3.60843317,126.32,126.31,0.2]
[1765875278468,11.52483595,126.32,126.31,0.2]
[1765875284473,8.63640278,126.32,126.31,0.2]
[1765875284674,11.52483595,126.32,126.31,0.2]
[1765875285172,2.88843317,126.32,126.31,0.2]
[1765875286781,10.80483595,126.32,126.31,0.2]
[1765875286986,11.52483595,126.32,126.31,0.2]
[1765875288072,10.80483595,126.32,126.31,0.2]
[1765875288788,11.52483595,126.32,126.31,0.2]
[1765875289390,13.15802404,126.32,126.31,0.2]
[1765875289685,8.63640278,126.32,126.31,0.2]
[1765875289880,13.15802404,126.32,126.31,0.2]
[1765875290378,17.6796453,126.32,126.31,0.2]
[1765875291278,26.3596453,126.32,126.31,0.2]
[1765875291897,13.0470912,126.3,126.29,0.2]
[1765875292070,30.77033372,126.3,126.29,0.2]
[1765875292392,31.49033372,126.3,126.29,0.2]
[1765875293286,39.40799009,126.3,126.29,0.2]
[1765875297572,17.56871246,126.3,126.29,0.86]
[1765875298782,7.91991489,126.35,126.29,8.77828331]
[1765875298989,4.52162126,126.33,126.3,0.66]
[1765875300002,4.52162126,126.33,126.31,7.91702953]
[1765875300998,4.52162126,126.33,126.32,0.66]
[1765875302003,4.51878202,126.33,126.32,8.57640278]
[1765875302605,4.51878202,126.37,126.32,13.0951848]
[1765875302900,4.51878202,126.38,126.33,5.23878202]
[1765875303067,20.45927797,126.4,126.34,7.91514959]
[1765875303068,7.91165325,126.4,126.34,7.91514959]
[1765875303267,5.19878202,126.42,126.35,17.48994492]
[1765875303495,4.51878202,126.38,126.36,0.72]
[1765875303805,4.51878202,126.37,126.36,0.72]
[1765875304903,4.51878202,126.37,126.36,8.6338968]
[1765875305997,4.51878202,126.38,126.36,8.6338968]
[1765875306172,4.51878202,126.38,126.37,0.72]
[1765875310500,4.51878202,126.38,126.36,0.72]
[1765875310682,4.51878202,126.37,126.36,0.72]
[1765875311602,4.51878202,126.37,126.36,8.6338968]
[1765875314412,13.7270912,126.39,126.36,8.6338968]
[1765875314705,4.51878202,126.37,126.36,8.6338968]
[1765875316204,21.63911548,126.39,126.36,8.6338968]
[1765875316407,4.51878202,126.38,126.37,0.72]
[1765875317908,13.7270912,126.39,126.36,7.9138968]
[1765875318102,4.51878202,126.38,126.36,8.6338968]
[1765875318304,13.7270912,126.39,126.36,8.6338968]
[1765875318305,4.51878202,126.37,126.36,8.6338968]
[1765875320210,4.51878202,126.38,126.36,8.6338968]
[1765875320411,4.51878202,126.37,126.36,8.6338968]
[1765875321717,17.56587322,126.37,126.32,19.79056694]
[1765875322011,17.56587322,126.33,126.29,0.92]
[1765875322198,4.51878202,126.3,126.29,0.92]
[1765875322399,4.51878202,126.3,126.29,0.2]
[1765875322788,13.7270912,126.33,126.29,0.2]
[1765875322789,4.51878202,126.31,126.29,0.2]
[1765875322987,8.68,126.35,126.3,0.72]
[1765875323195,4.51878202,126.32,126.3,0.72]
[1765875324112,4.51878202,126.32,126.31,7.91702953]
[1765875325184,4.51878202,126.32,126.31,8.63702953]
[1765875327918,5.19878202,126.32,126.29,8.11781782]
[1765875328092,4.51878202,126.3,126.29,8.83781782]
[1765875328291,4.51878202,126.3,126.29,0.2]
[1765875328513,4.51878202,126.3,126.29,0.92]
[1765875329208,5.19878202,126.3,126.29,0.2]
[1765875329406,4.51878202,126.3,126.29,0.2]
[1765875330425,9.71756404,126.3,126.29,0.2]
[1765875331001,17.63522041,126.3,126.29,0.2]
[1765875332132,26.31522041,126.3,126.29,0.2]
[1765875334219,59.15645254,126.3,126.25,0.2]
[1765875334408,4.51878202,126.26,126.25,0.2]
[1765875336022,13.08894675,126.26,126.25,0.2]
[1765875336620,37.40814061,126.26,126.24,0.2]
[1765875336824,13.0470912,126.23,126.22,0.2]
[1765875337149,26.24587322,126.23,126.18,0.2]
[1765875337316,22.08465524,126.19,126.18,0.2]
[1765875337525,38.68921344,126.19,126.18,0.2]
[1765875337702,39.33921344,126.19,126.14,0.87]
[1765875338023,4.51878202,126.15,126.14,8.79758338]
[1765875338947,4.51878202,126.15,126.14,0.2]
[1765875340835,5.16878202,126.15,126.14,0.2]
[1765875341038,13.09585296,126.15,126.14,0.2]
[1765875342949,17.56587322,126.15,126.14,0.2]
[1765875343811,18.21587322,126.15,126.14,0.2]
[1765875347123,17.56587322,126.15,126.14,0.2]
[1765875351458,15.94862963,126.15,126.14,0.2]
[1765875352169,16.59862963,126.15,126.14,0.2]
[1765875352566,24.52570057,126.15,126.14,0.2]
[1765875353073,0.65,126.14,126.06,13.0470912]
[1765875353357,2.90153843,126.07,126.06,0.67]
[1765875353857,2.90153843,126.07,126.05,7.93275805]
[1765875354045,2.90153843,126.06,126.05,0.67]
[1765875354244,2.90153843,126.06,126.04,8.60382989]
[1765875354447,2.90153843,126.05,126.04,8.60382989]
[1765875355639,2.90153843,126.07,126.04,8.60382989]
[1765875355837,2.90153843,126.09,126.05,9.35]
[1765875356365,2.90153843,126.09,126.06,0.67]
[1765875357641,2.90153843,126.09,126.07,7.93210121]
[1765875358556,2.90153843,126.08,126.07,7.93210121]
[1765875359148,2.90153843,126.08,126.07,8.60210121]
[1765875360271,2.90153843,126.08,126.07,7.93210121]
[1765875360670,2.90153843,126.08,126.06,7.93243294]
[1765875360856,3.55153843,126.07,126.04,17.30363536]
[1765875361062,2.90153843,126.05,126.04,17.30363536]
[1765875364481,2.90153843,126.05,126.03,2.66651713]
[1765875364675,2.90153843,126.04,126.03,11.30113587]
[1765875364979,2.90153843,126.05,126.03,2.66651713]
[1765875365183,2.90153843,126.05,126.04,7.9339892]
[1765875365394,2.90153843,126.05,126.04,8.6339892]
[1765875365884,2.90153843,126.06,126.04,8.6339892]
[1765875366059,2.90153843,126.06,126.05,0.7]
[1765875367227,2.90153843,126.06,126.05,8.63335977]
[1765875367681,2.90153843,126.09,126.05,37.16675921]
[1765875367857,2.90153843,126.09,126.06,0.7]
[1765875368557,2.90153843,126.1,126.06,3.60153843]
[1765875368860,2.90153843,126.11,126.07,11.71148335]
[1765875369053,2.90153843,126.11,126.08,8.7]
[1765875369272,2.90153843,126.11,126.09,7.93084304]
[1765875369476,2.90153843,126.11,126.09,8.63084304]
[1765875370184,2.90153843,126.1,126.09,8.63084304]
[1765875370486,2.90153843,126.11,126.1,0.7]
[1765875371186,2.90211659,126.11,126.1,0.7]
[1765875371360,2.90211659,126.12,126.1,0.7]
[1765875371554,2.90211659,126.12,126.11,8.7]
[1765875371955,2.90211659,126.12,126.11,9.4]
[1765875372661,2.90211659,126.12,126.11,17.32958528]
[1765875374886,3.59211659,126.12,126.09,0.7]
[1765875375091,8.61903152,126.12,126.1,8.7]
[1765875375393,8.61903152,126.12,126.07,16.63173024]
[1765875375394,0.69,126.11,126.07,16.63173024]
[1765875375566,0.69,126.11,126.07,17.33173024]
[1765875375765,0.69,126.11,126.06,7.93246964]
[1765875376264,2.90211659,126.07,126.06,7.93246964]
[1765875376690,2.90211659,126.07,126.06,8.63246964]
[1765875377780,0.69,126.09,126.06,8.63246964]
[1765875377967,2.90211659,126.07,126.06,8.63246964]
[1765875378805,2.90211659,126.07,126.06,7.93246964]
[1765875379091,2.90211659,126.07,126.05,7.93323848]
[1765875379270,2.90211659,126.06,126.05,7.93323848]
[1765875379671,2.90211659,126.06,126.04,17.33372324]
[1765875379873,8.6215415,126.08,126.05,7.93335977]
[1765875381092,2.90211659,126.06,126.05,7.93335977]
[1765875383693,0.69,126.07,126.05,7.93335977]
[1765875383871,2.90211659,126.06,126.05,7.93335977]
[1765875384075,5.80423318,126.06,126.03,2.66651713]
[1765875384300,2.90211659,126.04,126.03,2.66651713]
[1765875384498,15.94920779,126.04,126.03,2.66651713]
[1765875384879,13.0470912,126.04,126.03,10.60113587]
[1765875385069,3.59211659,126.04,126.03,2.66651713]
[1765875385275,16.63920779,126.04,126.03,2.66651713]
[1765875390792,24.57319699,126.04,126.03,2.66651713]
[1765875393895,24.57319699,126.04,126.02,0.2]
[1765875394102,3.61211659,126.03,126.02,0.2]
[1765875396210,11.54673533,126.03,126.02,0.2]
[1765875396507,2.90211659,126.03,126.02,0.2]
[1765875397620,3.61211659,126.03,126.02,0.2]
[1765875398320,11.54673533,126.03,126.02,0.2]
[1765875398677,11.54673533,126.03,125.97,7.93808134]
[1765875398925,2.90211659,125.98,125.96,28.54656984]
[1765875399126,2.90211659,125.97,125.96,37.1755981]
[1765875399285,2.90211659,125.97,125.96,36.4855981]
[1765875399484,2.90211659,125.98,125.96,36.4855981]
[1765875399885,2.90211659,125.98,125.97,0.69]
[1765875400202,2.90211659,125.98,125.97,8.62839803]
[1765875401884,3.61211659,125.98,125.97,7.93839803]
[1765875402092,2.90211659,125.98,125.97,7.93839803]
[1765875404703,2.90211659,126.0,125.99,0.69]
[1765875405695,2.90211659,126.0,125.98,27.78218763]
[1765875405911,2.90211659,125.99,125.98,28.47218763]
[1765875407610,2.90211659,126.0,125.98,28.47218763]
[1765875407817,2.90211659,126.0,125.99,0.69]
[1765875408517,2.90211659,126.0,125.99,8.62713786]
[1765875411436,4.54279555,126.0,125.99,8.62713786]
[1765875411612,5.25279555,126.0,125.96,0.69]
[1765875411812,4.54279555,125.98,125.96,0.69]
[1765875412017,4.54279555,125.98,125.97,27.78286441]
[1765875413318,4.54279555,125.98,125.97,20.53446638]
[1765875415627,4.54279555,125.99,125.97,28.47286441]
[1765875415922,4.54279555,126.0,125.98,9.39]
[1765875416318,4.54279555,126.0,125.99,0.69]
[1765875416520,0.71,125.99,125.96,16.63853935]
[1765875416700,4.54279555,125.97,125.96,8.7]
[1765875418109,4.54279555,125.97,125.96,16.63902826]
[1765875419842,4.54279555,125.98,125.96,17.32902826]
[1765875420742,4.54279555,125.98,125.97,0.69]
[1765875421127,13.0470912,126.0,125.97,0.69]
[1765875421444,4.54279555,126.0,125.98,8.7]
[1765875421935,4.54279555,126.0,125.99,7.93713786]
[1765875422347,8.64529142,126.02,125.99,7.93713786]
[1765875422546,4.54279555,126.0,125.99,7.93713786]
[1765875422846,8.64529142,126.02,125.99,7.93713786]
[1765875423018,4.54279555,126.0,125.99,7.93713786]
[1765875423748,4.54279555,126.0,125.98,16.63747846]
[1765875423921,4.54279555,125.99,125.98,16.63747846]
[1765875424125,4.54279555,125.99,125.98,17.35747846]
[1765875424344,4.54279555,125.99,125.98,8.7]
[1765875424549,5.21279555,125.99,125.98,8.7]
[1765875424755,4.54279555,125.99,125.98,8.7]
[1765875425240,5.21279555,125.99,125.97,78.53818531]
[1765875425424,4.54279555,125.98,125.97,79.25818531]
[1765875425814,4.54279555,125.98,125.97,7.93818531]
[1765875426017,5.21279555,125.98,125.93,20.05183225]
[1765875426223,5.21279555,125.98,125.95,8.7]
[1765875426224,0.67,125.97,125.95,8.7]
[1765875426442,4.54279555,125.96,125.95,8.7]
[1765875428565,4.54279555,125.97,125.95,17.35965859]
[1765875429142,4.54279555,125.97,125.95,16.63965859]
[1765875429346,4.54279555,125.96,125.95,8.7]
[1765875431026,0.67,125.97,125.95,8.7]
[1765875431348,4.54279555,125.96,125.95,8.7]
[1765875432043,4.54279555,125.96,125.95,7.93965859]
[1765875432254,4.54279555,125.96,125.93,0.2]
[1765875432255,5.21279555,125.96,125.93,0.2]
[1765875432465,4.54279555,125.94,125.93,0.2]
[1765875433355,5.21279555,125.94,125.93,0.2]
[1765875434160,13.15308457,125.94,125.93,0.2]
[1765875434961,17.69588012,125.94,125.93,0.2]
[1765875435469,9.7555911,125.94,125.93,0.2]
[1765875435673,5.21279555,125.94,125.93,0.2]
[1765875436158,13.15308457,125.94,125.93,0.2]
[1765875436342,8.61028902,125.94,125.93,0.2]
[1765875436542,18.25988675,125.94,125.93,0.2]
[1765875437666,26.20017577,125.94,125.93,0.2]
[1765875438070,30.74297132,125.94,125.93,0.2]
[1765875438368,30.74297132,125.94,125.9,17.56250768]
[1765875438369,13.0470912,125.91,125.84,0.2]
[1765875438571,17.58988675,125.85,125.84,0.2]
[1765875439057,4.54279555,125.88,125.84,0.2]
[1765875439250,4.54279555,125.85,125.84,0.92]
[1765875439435,4.54279555,125.85,125.84,0.2]
[1765875439875,5.21279555,125.85,125.84,0.2]
[1765875440252,13.17263781,125.85,125.84,0.2]
[1765875440470,33.03755636,125.85,125.79,0.72]
[1765875440774,4.55667039,125.8,125.79,0.72]
[1765875440974,4.55667039,125.8,125.79,8.66967187]
[1765875441146,0.67,125.81,125.77,0.72]
[1765875441354,4.55667039,125.79,125.74,7.95291872]
[1765875441661,0.67,125.82,125.75,19.87977756]
[1765875441863,4.55667039,125.8,125.76,8.7]
[1765875442062,4.55667039,125.8,125.76,9.42]
[1765875442266,16.6473513,125.83,125.77,0.72]
[1765875442267,4.55667039,125.81,125.77,0.72]
[1765875443356,4.55667039,125.81,125.78,7.95038956]
[1765875443869,4.55667039,125.8,125.78,8.67038956]
[1765875444187,4.55667039,125.8,125.79,0.72]
[1765875444688,0.67,125.82,125.79,0.72]
[1765875444865,13.0470912,125.84,125.79,0.72]
[1765875444866,13.0470912,125.83,125.79,0.72]
[1765875445066,4.55667039,125.82,125.79,9.42]
[1765875445379,4.55667039,125.82,125.8,7.94912559]
[1765875445584,4.55667039,125.82,125.8,8.66912559]
[1765875445761,4.55667039,125.82,125.81,0.72]
[1765875446782,0.67,125.84,125.81,0.72]
[1765875446984,4.55667039,125.82,125.81,0.72]
[1765875447358,4.55667039,125.82,125.8,7.94912559]
[1765875447559,4.55667039,125.82,125.81,0.72]
[1765875448482,4.55667039,125.84,125.81,0.72]
[1765875449463,4.55667039,125.83,125.81,0.72]
[1765875449784,4.55667039,125.83,125.82,7.94786202]
[1765875450371,4.55667039,125.83,125.79,8.7]
[1765875450570,4.55667039,125.83,125.81,7.94849376]
[1765875450571,4.55667039,125.82,125.81,7.94849376]
[1765875450973,4.55667039,125.82,125.81,8.66849376]
[1765875451359,0.67,125.84,125.81,8.66849376]
[1765875451581,4.55667039,125.82,125.79,0.72]
[1765875451786,0.67,125.84,125.8,8.72]
[1765875451987,0.67,125.83,125.8,8.72]
[1765875452674,0.67,125.83,125.78,7.95038956]
[1765875452888,4.55667039,125.82,125.79,8.72]
[1765875453088,4.55667039,125.8,125.79,8.72]
[1765875453994,5.24667039,125.8,125.78,7.95038956]
[1765875454198,4.55667039,125.79,125.78,7.95038956]
[1765875454575,4.55667039,125.79,125.77,0.68]
[1765875454775,4.55667039,125.79,125.74,19.88156602]
[1765875454776,5.24667039,125.78,125.75,0.68]
[1765875454983,4.55667039,125.76,125.75,17.35228628]
[1765875455181,0.69,125.78,125.75,17.35228628]
[1765875455386,4.55667039,125.76,125.75,17.35228628]
[1765875455708,4.55667039,125.76,125.74,7.9527854]
[1765875456005,0.69,125.79,125.75,8.63221805]
[1765875456006,0.69,125.78,125.75,8.63221805]
[1765875456896,0.69,125.78,125.72,7.95375392]
[1765875457102,4.55667039,125.73,125.72,7.95375392]
[1765875457300,4.55667039,125.73,125.72,8.63375392]
[1765875459277,4.55667039,125.73,125.72,7.95375392]
[1765875460900,4.55667039,125.73,125.71,10.66634123]
[1765875461108,4.55667039,125.72,125.71,10.66634123]
[1765875461397,4.55667039,125.77,125.73,8.80994492]
[1765875461704,4.55667039,125.78,125.74,8.72]
[1765875461909,4.55667039,125.78,125.74,9.4]
[1765875462099,4.55667039,125.78,125.75,0.68]
[1765875462418,4.55667039,125.78,125.76,7.95165394]
[1765875462780,4.55667039,125.77,125.76,8.63165394]
[1765875465009,0.69,125.8,125.76,8.63165394]
[1765875465310,4.55667039,125.78,125.76,8.63165394]
[1765875467188,4.55667039,125.79,125.77,9.4]
[1765875467510,26.24186904,125.82,125.77,13.95667039]
[1765875467511,4.55667039,125.82,125.77,13.95667039]
[1765875467817,4.55667039,125.82,125.78,0.68]
[1765875468612,4.55667039,125.82,125.79,7.94975753]
[1765875468812,25.14358695,125.86,125.8,8.72]
[1765875468997,4.55667039,125.82,125.8,8.72]
[1765875469192,0.69,125.85,125.8,8.72]
[1765875469394,4.55667039,125.82,125.8,9.4]
[1765875469592,0.69,125.84,125.8,9.4]
[1765875469593,4.55667039,125.81,125.8,9.4]
[1765875469793,4.55667039,125.81,125.8,8.72]
[1765875470512,4.55667039,125.81,125.8,7.94866241]
[1765875471412,7.94673648,125.84,125.8,7.94866241]
[1765875471614,4.55667039,125.81,125.8,7.94866241]
[1765875472118,4.55667039,125.82,125.8,7.94866241]
[1765875472621,4.55667039,125.82,125.8,8.62866241]
[1765875472927,4.55667039,125.83,125.81,0.68]
[1765875473431,2.91534026,125.83,125.81,0.68]
[1765875473728,2.91534026,125.82,125.81,0.68]
[1765875474300,3.60534026,125.82,125.8,16.66866241]
[1765875474517,2.91534026,125.81,125.8,16.66866241]
[1765875478334,2.91534026,125.81,125.76,2.91534026]
[1765875478335,3.60534026,125.81,125.77,27.82857596]
[1765875478630,2.91534026,125.8,125.78,8.72]
[1765875478800,2.91534026,125.8,125.78,9.4]
[1765875480141,2.91534026,125.8,125.77,27.82857596]
[1765875480345,2.91534026,125.79,125.77,37.22857596]
[1765875481245,3.60534026,125.8,125.77,37.22857596]
[1765875481418,2.91534026,125.8,125.78,0.68]
[1765875481625,0.69,125.81,125.79,7.94975753]
[1765875481825,2.91534026,125.8,125.79,7.94975753]
[1765875483422,2.91534026,125.8,125.79,0.72]
[1765875483627,2.91534026,125.81,125.79,0.72]
[1765875483811,2.91534026,125.81,125.79,9.44]
[1765875484515,2.91534026,125.82,125.8,0.72]
[1765875484731,0.66,125.83,125.8,0.72]
[1765875485040,2.91534026,125.82,125.8,0.72]
[1765875485544,2.91534026,125.82,125.81,7.94849376]
[1765875486334,2.91534026,125.85,125.81,17.38849376]
[1765875486510,2.91534026,125.85,125.82,0.72]
[1765875486712,2.91534026,125.85,125.83,8.72]
[1765875487454,2.91534026,125.85,125.84,7.94659885]
[1765875487742,2.91534026,125.86,125.84,8.66659885]
[1765875488248,2.91534026,125.86,125.84,28.53309598]
[1765875489748,2.91534026,125.86,125.84,8.66659885]
[1765875489940,3.57534026,125.85,125.81,9.44]
[1765875490245,2.91534026,125.82,125.81,7.94849376]
[1765875490934,0.66,125.83,125.81,7.94849376]
[1765875491139,2.91534026,125.82,125.81,7.94849376]
[1765875492639,2.91534026,125.83,125.81,7.94849376]
[1765875492840,2.91534026,125.83,125.81,8.66849376]
[1765875493546,8.06805476,125.91,125.82,9.44]
[1765875493854,2.91534026,125.87,125.83,27.81530636]
[1765875494032,2.91534026,125.87,125.84,8.72]
[1765875494232,2.91534026,125.86,125.84,9.44]
[1765875494555,2.91534026,125.87,125.85,0.72]
[1765875494756,2.91534026,125.87,125.84,9.44]
[1765875495753,2.91534026,125.87,125.85,7.94596742]
[1765875497258,2.91534026,125.86,125.85,7.94596742]
[1765875497640,2.91534026,125.88,125.85,28.53088597]
[1765875497832,2.91534026,125.87,125.85,28.53088597]
[1765875498152,2.91534026,125.87,125.85,37.25088597]
[1765875504247,2.91534026,125.87,125.85,27.81088597]
[1765875504439,3.57534026,125.87,125.85,36.53088597]
[1765875504746,2.91534026,125.87,125.85,27.81088597]
[1765875504944,2.91534026,125.87,125.85,36.53088597]
[1765875505665,2.91534026,125.87,125.85,37.25088597]
[1765875505968,3.57534026,125.87,125.85,36.53088597]
[1765875506270,2.91534026,125.87,125.85,36.53088597]
[1765875506661,2.91534026,125.87,125.85,37.25088597]
[1765875507137,4.15053386,125.91,125.86,0.72]
[1765875507338,2.91534026,125.91,125.87,8.72]
[1765875507757,3.57534026,125.91,125.88,0.72]
[1765875507955,3.57534026,125.91,125.85,28.53088597]
[1765875507956,0.66,125.9,125.85,28.53088597]
[1765875508168,2.91534026,125.86,125.85,16.66596742]
[1765875508552,2.91534026,125.86,125.85,17.38596742]
[1765875508742,2.91399044,125.86,125.85,17.38596742]
[1765875509756,0.66,125.88,125.85,17.38596742]
[1765875510070,2.91399044,125.88,125.85,17.38596742]
[1765875510265,2.91399044,125.88,125.86,0.72]
[1765875510965,2.91399044,125.88,125.87,7.94470485]
[1765875511542,0.66,125.9,125.87,17.38470485]
[1765875511749,2.91399044,125.89,125.87,17.38470485]
[1765875513165,2.91399044,125.89,125.87,16.66470485]
[1765875513574,2.91399044,125.88,125.87,16.66470485]
[1765875515066,2.91399044,125.89,125.87,16.66470485]
[1765875515973,2.91399044,125.89,125.87,17.31470485]
[1765875517444,0.7,125.92,125.88,0.65]
[1765875517651,2.91399044,125.91,125.88,0.65]
[1765875518777,2.91399044,125.91,125.89,7.94344268]
[1765875519275,2.91399044,125.91,125.89,16.64344268]
[1765875519441,2.91399044,125.91,125.89,17.29344268]
[1765875520184,3.61399044,125.91,125.89,16.64344268]
[1765875520779,2.91399044,125.9,125.89,16.64344268]
[1765875522747,7.94118891,125.93,125.89,17.29344268]
[1765875522951,2.91399044,125.92,125.9,0.65]
[1765875523975,2.91399044,125.92,125.91,7.94218092]
[1765875524845,2.91399044,125.93,125.91,17.29218092]
[1765875525264,8.63970021,125.95,125.91,17.29218092]
[1765875525466,0.7,125.96,125.92,0.65]
[1765875525654,3.61399044,125.95,125.92,0.65]
[1765875525854,0.7,125.95,125.93,7.94091955]
[1765875526053,3.61399044,125.95,125.93,7.94091955]
[1765875526973,2.91399044,125.94,125.93,7.94091955]
[1765875527171,0.7,125.95,125.93,7.94091955]
[1765875527172,3.61399044,125.95,125.93,7.94091955]
[1765875527878,2.91399044,125.95,125.94,0.65]
[1765875528063,2.91399044,125.95,125.93,17.29091955]